Workbook

Sheet БДМ№1
B1: =[1]Начальная!C12 -> 2015-08-01 | D1: =[1]Начальная!C10 -> см. Хомич Н.Н. | I1: БДМ № 1 | O1: Для бригадного расчёта | AG1: бумажный цех
B3: Таб№ | C3: Фамилия, Имя, Отчество | E3: Отработано часов по числам месяца | AJ3: Часы
E4: =[1]Начальная!C12 -> 2015-08-01 | F4: =E4+1 -> 2015-08-02 | G4: =F4+1 -> 2015-08-03 | H4: 2015-08-04 | I4: 2015-08-05 | J4: 2015-08-06 | K4: 2015-08-07 | L4: 2015-08-08 | M4: 2015-08-09 | N4: 2015-08-10 | O4: 2015-08-11 | P4: 2015-08-12 | Q4: 2015-08-13 | R4: 2015-08-14 | S4: 2015-08-15 | T4: 2015-08-16 | U4: 2015-08-17 | V4: 2015-08-18 | W4: 2015-08-19 | X4: 2015-08-20 | Y4: 2015-08-21 | Z4: 2015-08-22 | AA4: 2015-08-23 | AB4: 2015-08-24 | AC4: 2015-08-25 | AD4: 2015-08-26 | AE4: 2015-08-27 | AF4: 2015-08-28 | AG4: 2015-08-29 | AH4: 2015-08-30 | AI4: 2015-08-31
A5: 1 | B5: =IFERROR(VLOOKUP(C5,[1]Список!$B$2:$C$150,2,0),"") -> 465 | C5: Рудницкий С.Н. | D5: Машинист 6 р. | I5: 8 | P5: 7 | Q5: 7.5 | X5: 8 | AJ5: =IF(ISNA(SUM(IF(RIGHTB(D5)="%",TEXT(INDEX(E$5:AI5,MATCH(LEFTB(C5,SEARCH("%",D5)),(C$5:C5),),),"0;0;12")*E5:AI5%,E5:AI5))),"",SUM(IF(RIGHTB(D5)="%",TEXT(INDEX(E$5:AI5,MATCH(LEFTB(C5,SEARCH("%",D5)),(C$5:C5),),),"0;0;12")*E5:AI5%,E5:AI5))) -> 30.5
B6: =IFERROR(VLOOKUP(C6,[1]Список!$B$2:$C$150,2,0),"") -> 465 | C6: Рудницкий С.Н. | D6: Сушильщик 4 р. % | AJ6: =IF(ISNA(SUM(IF(RIGHTB(D6)="%",TEXT(INDEX(E$5:AI6,MATCH(LEFTB(C6,SEARCH("%",D6)),(C$5:C6),),),"0;0;12")*E6:AI6%,E6:AI6))),"",SUM(IF(RIGHTB(D6)="%",TEXT(INDEX(E$5:AI6,MATCH(LEFTB(C6,SEARCH("%",D6)),(C$5:C6),),),"0;0;12")*E6:AI6%,E6:AI6))) -> 0
B7: =IFERROR(VLOOKUP(C7,[1]Список!$B$2:$C$150,2,0),"") ->  | AJ7: =IF(ISNA(SUM(IF(RIGHTB(D7)="%",TEXT(INDEX(E$5:AI7,MATCH(LEFTB(C7,SEARCH("%",D7)),(C$5:C7),),),"0;0;12")*E7:AI7%,E7:AI7))),"",SUM(IF(RIGHTB(D7)="%",TEXT(INDEX(E$5:AI7,MATCH(LEFTB(C7,SEARCH("%",D7)),(C$5:C7),),),"0;0;12")*E7:AI7%,E7:AI7))) -> 0
B8: =IFERROR(VLOOKUP(C8,[1]Список!$B$2:$C$150,2,0),"") ->  | AJ8: =IF(ISNA(SUM(IF(RIGHTB(D8)="%",TEXT(INDEX(E$5:AI8,MATCH(LEFTB(C8,SEARCH("%",D8)),(C$5:C8),),),"0;0;12")*E8:AI8%,E8:AI8))),"",SUM(IF(RIGHTB(D8)="%",TEXT(INDEX(E$5:AI8,MATCH(LEFTB(C8,SEARCH("%",D8)),(C$5:C8),),),"0;0;12")*E8:AI8%,E8:AI8))) -> 0
A9: 2.03 | B9: =IFERROR(VLOOKUP(C9,[1]Список!$B$2:$C$150,2,0),"") -> 761 | C9: Сацук А.Л. | D9: Машинист 6 р. | I9: 12 | L9: 12 | M9: 12 | P9: 9.5 | Q9: 11.5 | U9: 12 | X9: 12 | Y9: 11 | AB9: 12 | AC9: 12 | AJ9: =IF(ISNA(SUM(IF(RIGHTB(D9)="%",TEXT(INDEX(E$5:AI9,MATCH(LEFTB(C9,SEARCH("%",D9)),(C$5:C9),),),"0;0;12")*E9:AI9%,E9:AI9))),"",SUM(IF(RIGHTB(D9)="%",TEXT(INDEX(E$5:AI9,MATCH(LEFTB(C9,SEARCH("%",D9)),(C$5:C9),),),"0;0;12")*E9:AI9%,E9:AI9))) -> 116 | AK9: =SEARCH("%",D10) -> 15
B10: =IFERROR(VLOOKUP(C10,[1]Список!$B$2:$C$150,2,0),"") -> 761 | C10: Сацук А.Л. | D10: Накатчик 3 р. % | I10: 50 | AJ10: =IF(ISNA(SUM(IF(RIGHTB(D10)="%",TEXT(INDEX(E$5:AI10,MATCH(LEFTB(C10,SEARCH("%",D10)),(C$5:C10),),),"0;0;12")*E10:AI10%,E10:AI10))),"",SUM(IF(RIGHTB(D10)="%",TEXT(INDEX(E$5:AI10,MATCH(LEFTB(C10,SEARCH("%",D10)),(C$5:C10),),),"0;0;12")*E10:AI10%,E10:AI10))) -> 6
B11: =IFERROR(VLOOKUP(C11,[1]Список!$B$2:$C$150,2,0),"") ->  | AJ11: =IF(ISNA(SUM(IF(RIGHTB(D11)="%",TEXT(INDEX(E$5:AI11,MATCH(LEFTB(C11,SEARCH("%",D11)),(C$5:C11),),),"0;0;12")*E11:AI11%,E11:AI11))),"",SUM(IF(RIGHTB(D11)="%",TEXT(INDEX(E$5:AI11,MATCH(LEFTB(C11,SEARCH("%",D11)),(C$5:C11),),),"0;0;12")*E11:AI11%,E11:AI11))) -> 0
B12: =IFERROR(VLOOKUP(C12,[1]Список!$B$2:$C$150,2,0),"") ->  | AJ12: =IF(ISNA(SUM(IF(RIGHTB(D12)="%",TEXT(INDEX(E$5:AI12,MATCH(LEFTB(C12,SEARCH("%",D12)),(C$5:C12),),),"0;0;12")*E12:AI12%,E12:AI12))),"",SUM(IF(RIGHTB(D12)="%",TEXT(INDEX(E$5:AI12,MATCH(LEFTB(C12,SEARCH("%",D12)),(C$5:C12),),),"0;0;12")*E12:AI12%,E12:AI12))) -> 0
A13: 3 | B13: =IFERROR(VLOOKUP(C13,[1]Список!$B$2:$C$150,2,0),"") -> 1674 | C13: Орловский А.М. | D13: Перссовщик 3 р. | H13: 12 | I13: 12 | L13: 12 | M13: 12 | P13: 9.5 | Q13: 11.5 | T13: 12 | U13: 12 | X13: 12 | Y13: 11 | AB13: 12 | AC13: 12 | AJ13: =IF(ISNA(SUM(IF(RIGHTB(D13)="%",TEXT(INDEX(E$5:AI13,MATCH(LEFTB(C13,SEARCH("%",D13)),(C$5:C13),),),"0;0;12")*E13:AI13%,E13:AI13))),"",SUM(IF(RIGHTB(D13)="%",TEXT(INDEX(E$5:AI13,MATCH(LEFTB(C13,SEARCH("%",D13)),(C$5:C13),),),"0;0;12")*E13:AI13%,E13:AI13))) -> 140 | AK13: =ISERROR(SEARCH("%",D13)) -> TRUE
B14: =IFERROR(VLOOKUP(C14,[1]Список!$B$2:$C$150,2,0),"") ->  | AJ14: =IF(ISNA(SUM(IF(RIGHTB(D14)="%",TEXT(INDEX(E$5:AI14,MATCH(LEFTB(C14,SEARCH("%",D14)),(C$5:C14),),),"0;0;12")*E14:AI14%,E14:AI14))),"",SUM(IF(RIGHTB(D14)="%",TEXT(INDEX(E$5:AI14,MATCH(LEFTB(C14,SEARCH("%",D14)),(C$5:C14),),),"0;0;12")*E14:AI14%,E14:AI14))) -> 0
B15: =IFERROR(VLOOKUP(C15,[1]Список!$B$2:$C$150,2,0),"") ->  | AJ15: =IF(ISNA(SUM(IF(RIGHTB(D15)="%",TEXT(INDEX(E$5:AI15,MATCH(LEFTB(C15,SEARCH("%",D15)),(C$5:C15),),),"0;0;12")*E15:AI15%,E15:AI15))),"",SUM(IF(RIGHTB(D15)="%",TEXT(INDEX(E$5:AI15,MATCH(LEFTB(C15,SEARCH("%",D15)),(C$5:C15),),),"0;0;12")*E15:AI15%,E15:AI15))) -> 0
B16: =IFERROR(VLOOKUP(C16,[1]Список!$B$2:$C$150,2,0),"") ->  | AJ16: =IF(ISNA(SUM(IF(RIGHTB(D16)="%",TEXT(INDEX(E$5:AI16,MATCH(LEFTB(C16,SEARCH("%",D16)),(C$5:C16),),),"0;0;12")*E16:AI16%,E16:AI16))),"",SUM(IF(RIGHTB(D16)="%",TEXT(INDEX(E$5:AI16,MATCH(LEFTB(C16,SEARCH("%",D16)),(C$5:C16),),),"0;0;12")*E16:AI16%,E16:AI16))) -> 0
A17: 4 | B17: =IFERROR(VLOOKUP(C17,[1]Список!$B$2:$C$150,2,0),"") -> 1179 | C17: Брикун М.А. | D17: Сушильщик 4 р. | I17: 12 | L17: 12 | M17: 12 | P17: 9.5 | Q17: 11.5 | U17: 12 | X17: 12 | Y17: 11 | AB17: 12 | AC17: 12 | AJ17: =IF(ISNA(SUM(IF(RIGHTB(D17)="%",TEXT(INDEX(E$5:AI17,MATCH(LEFTB(C17,SEARCH("%",D17)),(C$5:C17),),),"0;0;12")*E17:AI17%,E17:AI17))),"",SUM(IF(RIGHTB(D17)="%",TEXT(INDEX(E$5:AI17,MATCH(LEFTB(C17,SEARCH("%",D17)),(C$5:C17),),),"0;0;12")*E17:AI17%,E17:AI17))) -> 116
B18: =IFERROR(VLOOKUP(C18,[1]Список!$B$2:$C$150,2,0),"") -> 1179 | C18: Брикун М.А. | D18: Накатчик 3 р. % | I18: 50 | AJ18: =IF(ISNA(SUM(IF(RIGHTB(D18)="%",TEXT(INDEX(E$5:AI18,MATCH(LEFTB(C18,SEARCH("%",D18)),(C$5:C18),),),"0;0;12")*E18:AI18%,E18:AI18))),"",SUM(IF(RIGHTB(D18)="%",TEXT(INDEX(E$5:AI18,MATCH(LEFTB(C18,SEARCH("%",D18)),(C$5:C18),),),"0;0;12")*E18:AI18%,E18:AI18))) -> 6
B19: =IFERROR(VLOOKUP(C19,[1]Список!$B$2:$C$150,2,0),"") -> 1179 | C19: Брикун М.А. | D19: Разм. брака 2 р. % | L19: 50 | M19: 50 | P19: 50 | Q19: 50 | U19: 50 | X19: 50 | Y19: 50 | AB19: 50 | AC19: 50 | AJ19: =IF(ISNA(SUM(IF(RIGHTB(D19)="%",TEXT(INDEX(E$5:AI19,MATCH(LEFTB(C19,SEARCH("%",D19)),(C$5:C19),),),"0;0;12")*E19:AI19%,E19:AI19))),"",SUM(IF(RIGHTB(D19)="%",TEXT(INDEX(E$5:AI19,MATCH(LEFTB(C19,SEARCH("%",D19)),(C$5:C19),),),"0;0;12")*E19:AI19%,E19:AI19))) -> 52.5
B20: =IFERROR(VLOOKUP(C20,[1]Список!$B$2:$C$150,2,0),"") ->  | AJ20: =IF(ISNA(SUM(IF(RIGHTB(D20)="%",TEXT(INDEX(E$5:AI20,MATCH(LEFTB(C20,SEARCH("%",D20)),(C$5:C20),),),"0;0;12")*E20:AI20%,E20:AI20))),"",SUM(IF(RIGHTB(D20)="%",TEXT(INDEX(E$5:AI20,MATCH(LEFTB(C20,SEARCH("%",D20)),(C$5:C20),),),"0;0;12")*E20:AI20%,E20:AI20))) -> 0
A21: 5 | B21: =IFERROR(VLOOKUP(C21,[1]Список!$B$2:$C$150,2,0),"") -> 1291 | C21: Лысковец А.Н. | D21: Накатчик 3 р. | L21: 12 | M21: 12 | P21: 9.5 | Q21: 11.5 | U21: 12 | X21: 12 | Y21: 11 | AB21: 12 | AC21: 12 | AJ21: =IF(ISNA(SUM(IF(RIGHTB(D21)="%",TEXT(INDEX(E$5:AI21,MATCH(LEFTB(C21,SEARCH("%",D21)),(C$5:C21),),),"0;0;12")*E21:AI21%,E21:AI21))),"",SUM(IF(RIGHTB(D21)="%",TEXT(INDEX(E$5:AI21,MATCH(LEFTB(C21,SEARCH("%",D21)),(C$5:C21),),),"0;0;12")*E21:AI21%,E21:AI21))) -> 104
B23: =IFERROR(VLOOKUP(C23,[1]Список!$B$2:$C$150,2,0),"") -> 1339 | C23: Аниськович А.П. | AJ23: =IF(ISNA(SUM(IF(RIGHTB(D23)="%",TEXT(INDEX(E$5:AI23,MATCH(LEFTB(C23,SEARCH("%",D23)),(C$5:C23),),),"0;0;12")*E23:AI23%,E23:AI23))),"",SUM(IF(RIGHTB(D23)="%",TEXT(INDEX(E$5:AI23,MATCH(LEFTB(C23,SEARCH("%",D23)),(C$5:C23),),),"0;0;12")*E23:AI23%,E23:AI23))) -> 0
B24: =IFERROR(VLOOKUP(C24,[1]Список!$B$2:$C$150,2,0),"") ->  | AJ24: =IF(ISNA(SUM(IF(RIGHTB(D24)="%",TEXT(INDEX(E$5:AI24,MATCH(LEFTB(C24,SEARCH("%",D24)),(C$5:C24),),),"0;0;12")*E24:AI24%,E24:AI24))),"",SUM(IF(RIGHTB(D24)="%",TEXT(INDEX(E$5:AI24,MATCH(LEFTB(C24,SEARCH("%",D24)),(C$5:C24),),),"0;0;12")*E24:AI24%,E24:AI24))) -> 0
A25: 6 | B25: =IFERROR(VLOOKUP(C25,[1]Список!$B$2:$C$150,2,0),"") -> 491 | C25: Жизневская Т.Ф. | D25: Разм. РПО 4 р. | H25: 12 | I25: 12 | L25: 12 | M25: 12 | P25: 9.5 | Q25: 11.5 | T25: 12 | U25: 12 | X25: 12 | Y25: 11 | AB25: 12 | AC25: 12 | AJ25: =IF(ISNA(SUM(IF(RIGHTB(D25)="%",TEXT(INDEX(E$5:AI25,MATCH(LEFTB(C25,SEARCH("%",D25)),(C$5:C25),),),"0;0;12")*E25:AI25%,E25:AI25))),"",SUM(IF(RIGHTB(D25)="%",TEXT(INDEX(E$5:AI25,MATCH(LEFTB(C25,SEARCH("%",D25)),(C$5:C25),),),"0;0;12")*E25:AI25%,E25:AI25))) -> 140
B26: =IFERROR(VLOOKUP(C26,[1]Список!$B$2:$C$150,2,0),"") -> 491 | C26: Жизневская Т.Ф. | D26: Разм. РПО 3 р. % | H26: 100 | I26: 100 | L26: 100 | M26: 100 | P26: 100 | Q26: 100 | T26: 100 | U26: 100 | X26: 100 | Y26: 100 | AB26: 100 | AC26: 100 | AJ26: =IF(ISNA(SUM(IF(RIGHTB(D26)="%",TEXT(INDEX(E$5:AI26,MATCH(LEFTB(C26,SEARCH("%",D26)),(C$5:C26),),),"0;0;12")*E26:AI26%,E26:AI26))),"",SUM(IF(RIGHTB(D26)="%",TEXT(INDEX(E$5:AI26,MATCH(LEFTB(C26,SEARCH("%",D26)),(C$5:C26),),),"0;0;12")*E26:AI26%,E26:AI26))) -> 141
B27: =IFERROR(VLOOKUP(C27,[1]Список!$B$2:$C$150,2,0),"") -> 491 | C27: Жизневская Т.Ф. | D27: Ап.пр.хим.р-в 3 р. % | M27: 100 | P27: 100 | Q27: 100 | T27: 100 | U27: 100 | AJ27: =IF(ISNA(SUM(IF(RIGHTB(D27)="%",TEXT(INDEX(E$5:AI27,MATCH(LEFTB(C27,SEARCH("%",D27)),(C$5:C27),),),"0;0;12")*E27:AI27%,E27:AI27))),"",SUM(IF(RIGHTB(D27)="%",TEXT(INDEX(E$5:AI27,MATCH(LEFTB(C27,SEARCH("%",D27)),(C$5:C27),),),"0;0;12")*E27:AI27%,E27:AI27))) -> 58
B28: =IFERROR(VLOOKUP(C28,[1]Список!$B$2:$C$150,2,0),"") ->  | AJ28: =IF(ISNA(SUM(IF(RIGHTB(D28)="%",TEXT(INDEX(E$5:AI28,MATCH(LEFTB(C28,SEARCH("%",D28)),(C$5:C28),),),"0;0;12")*E28:AI28%,E28:AI28))),"",SUM(IF(RIGHTB(D28)="%",TEXT(INDEX(E$5:AI28,MATCH(LEFTB(C28,SEARCH("%",D28)),(C$5:C28),),),"0;0;12")*E28:AI28%,E28:AI28))) -> 0
B29: =IFERROR(VLOOKUP(C29,[1]Список!$B$2:$C$150,2,0),"") -> 856 | C29: Залан А.В. | D29: Разм. РПО 3 р. | AJ29: =IF(ISNA(SUM(IF(RIGHTB(D29)="%",TEXT(INDEX(E$5:AI29,MATCH(LEFTB(C29,SEARCH("%",D29)),(C$5:C29),),),"0;0;12")*E29:AI29%,E29:AI29))),"",SUM(IF(RIGHTB(D29)="%",TEXT(INDEX(E$5:AI29,MATCH(LEFTB(C29,SEARCH("%",D29)),(C$5:C29),),),"0;0;12")*E29:AI29%,E29:AI29))) -> 0
B30: =IFERROR(VLOOKUP(C30,[1]Список!$B$2:$C$150,2,0),"") ->  | AJ30: =IF(ISNA(SUM(IF(RIGHTB(D30)="%",TEXT(INDEX(E$5:AI30,MATCH(LEFTB(C30,SEARCH("%",D30)),(C$5:C30),),),"0;0;12")*E30:AI30%,E30:AI30))),"",SUM(IF(RIGHTB(D30)="%",TEXT(INDEX(E$5:AI30,MATCH(LEFTB(C30,SEARCH("%",D30)),(C$5:C30),),),"0;0;12")*E30:AI30%,E30:AI30))) -> 0
B31: =IFERROR(VLOOKUP(C31,[1]Список!$B$2:$C$150,2,0),"") ->  | AJ31: =IF(ISNA(SUM(IF(RIGHTB(D31)="%",TEXT(INDEX(E$5:AI31,MATCH(LEFTB(C31,SEARCH("%",D31)),(C$5:C31),),),"0;0;12")*E31:AI31%,E31:AI31))),"",SUM(IF(RIGHTB(D31)="%",TEXT(INDEX(E$5:AI31,MATCH(LEFTB(C31,SEARCH("%",D31)),(C$5:C31),),),"0;0;12")*E31:AI31%,E31:AI31))) -> 0
B32: =IFERROR(VLOOKUP(C32,[1]Список!$B$2:$C$150,2,0),"") ->  | AJ32: =IF(ISNA(SUM(IF(RIGHTB(D32)="%",TEXT(INDEX(E$5:AI32,MATCH(LEFTB(C32,SEARCH("%",D32)),(C$5:C32),),),"0;0;12")*E32:AI32%,E32:AI32))),"",SUM(IF(RIGHTB(D32)="%",TEXT(INDEX(E$5:AI32,MATCH(LEFTB(C32,SEARCH("%",D32)),(C$5:C32),),),"0;0;12")*E32:AI32%,E32:AI32))) -> 0
A33: 7 | B33: =IFERROR(VLOOKUP(C33,[1]Список!$B$2:$C$150,2,0),"") -> 1311 | C33: Грузд Н.Н. | D33: Ап.пр.хим.р-в 3 р. | P33: 9.5 | T33: 12 | U33: 12 | X33: 12 | Y33: 11 | AB33: 12 | AC33: 12 | AJ33: =IF(ISNA(SUM(IF(RIGHTB(D33)="%",TEXT(INDEX(E$5:AI33,MATCH(LEFTB(C33,SEARCH("%",D33)),(C$5:C33),),),"0;0;12")*E33:AI33%,E33:AI33))),"",SUM(IF(RIGHTB(D33)="%",TEXT(INDEX(E$5:AI33,MATCH(LEFTB(C33,SEARCH("%",D33)),(C$5:C33),),),"0;0;12")*E33:AI33%,E33:AI33))) -> 80.5
B34: =IFERROR(VLOOKUP(C34,[1]Список!$B$2:$C$150,2,0),"") -> 1311 | C34: Грузд Н.Н. | D34: Разм. ПО 3 р. % | P34: 50 | T34: 100 | U34: 100 | AJ34: =IF(ISNA(SUM(IF(RIGHTB(D34)="%",TEXT(INDEX(E$5:AI34,MATCH(LEFTB(C34,SEARCH("%",D34)),(C$5:C34),),),"0;0;12")*E34:AI34%,E34:AI34))),"",SUM(IF(RIGHTB(D34)="%",TEXT(INDEX(E$5:AI34,MATCH(LEFTB(C34,SEARCH("%",D34)),(C$5:C34),),),"0;0;12")*E34:AI34%,E34:AI34))) -> 29
B35: =IFERROR(VLOOKUP(C35,[1]Список!$B$2:$C$150,2,0),"") ->  | AJ35: =IF(ISNA(SUM(IF(RIGHTB(D35)="%",TEXT(INDEX(E$5:AI35,MATCH(LEFTB(C35,SEARCH("%",D35)),(C$5:C35),),),"0;0;12")*E35:AI35%,E35:AI35))),"",SUM(IF(RIGHTB(D35)="%",TEXT(INDEX(E$5:AI35,MATCH(LEFTB(C35,SEARCH("%",D35)),(C$5:C35),),),"0;0;12")*E35:AI35%,E35:AI35))) -> 0
B36: =IFERROR(VLOOKUP(C36,[1]Список!$B$2:$C$150,2,0),"") ->  | AJ36: =IF(ISNA(SUM(IF(RIGHTB(D36)="%",TEXT(INDEX(E$5:AI36,MATCH(LEFTB(C36,SEARCH("%",D36)),(C$5:C36),),),"0;0;12")*E36:AI36%,E36:AI36))),"",SUM(IF(RIGHTB(D36)="%",TEXT(INDEX(E$5:AI36,MATCH(LEFTB(C36,SEARCH("%",D36)),(C$5:C36),),),"0;0;12")*E36:AI36%,E36:AI36))) -> 0
A37: 8 | B37: =IFERROR(VLOOKUP(C37,[1]Список!$B$2:$C$150,2,0),"") -> 170 | C37: Кудревич О.М. | D37: Ап.пр.хим.р-в 3 р. | H37: 12 | I37: 12 | L37: 12 | M37: 12 | P37: 9.5 | Q37: 11.5 | T37: 12 | U37: 12 | X37: 12 | Y37: 11 | AB37: 12 | AC37: 12 | AJ37: =IF(ISNA(SUM(IF(RIGHTB(D37)="%",TEXT(INDEX(E$5:AI37,MATCH(LEFTB(C37,SEARCH("%",D37)),(C$5:C37),),),"0;0;12")*E37:AI37%,E37:AI37))),"",SUM(IF(RIGHTB(D37)="%",TEXT(INDEX(E$5:AI37,MATCH(LEFTB(C37,SEARCH("%",D37)),(C$5:C37),),),"0;0;12")*E37:AI37%,E37:AI37))) -> 140
B38: =IFERROR(VLOOKUP(C38,[1]Список!$B$2:$C$150,2,0),"") -> 170 | C38: Кудревич О.М. | D38: Ап.пр.хим.р-в 3 р. % | H38: 100 | I38: 100 | L38: 100 | M38: 100 | Q38: 100 | AJ38: =IF(ISNA(SUM(IF(RIGHTB(D38)="%",TEXT(INDEX(E$5:AI38,MATCH(LEFTB(C38,SEARCH("%",D38)),(C$5:C38),),),"0;0;12")*E38:AI38%,E38:AI38))),"",SUM(IF(RIGHTB(D38)="%",TEXT(INDEX(E$5:AI38,MATCH(LEFTB(C38,SEARCH("%",D38)),(C$5:C38),),),"0;0;12")*E38:AI38%,E38:AI38))) -> 60
B39: =IFERROR(VLOOKUP(C39,[1]Список!$B$2:$C$150,2,0),"") -> 170 | C39: Кудревич О.М. | D39: Разм. ПО 3 р. % | P39: 50 | T39: 100 | U39: 100 | AJ39: =IF(ISNA(SUM(IF(RIGHTB(D39)="%",TEXT(INDEX(E$5:AI39,MATCH(LEFTB(C39,SEARCH("%",D39)),(C$5:C39),),),"0;0;12")*E39:AI39%,E39:AI39))),"",SUM(IF(RIGHTB(D39)="%",TEXT(INDEX(E$5:AI39,MATCH(LEFTB(C39,SEARCH("%",D39)),(C$5:C39),),),"0;0;12")*E39:AI39%,E39:AI39))) -> 29
B40: =IFERROR(VLOOKUP(C40,[1]Список!$B$2:$C$150,2,0),"") ->  | AJ40: =IF(ISNA(SUM(IF(RIGHTB(D40)="%",TEXT(INDEX(E$5:AI40,MATCH(LEFTB(C40,SEARCH("%",D40)),(C$5:C40),),),"0;0;12")*E40:AI40%,E40:AI40))),"",SUM(IF(RIGHTB(D40)="%",TEXT(INDEX(E$5:AI40,MATCH(LEFTB(C40,SEARCH("%",D40)),(C$5:C40),),),"0;0;12")*E40:AI40%,E40:AI40))) -> 0
A41: 9 | B41: =IFERROR(VLOOKUP(C41,[1]Список!$B$2:$C$150,2,0),"") -> 509 | C41: Заяц Т.Л. | D41: Резчик ПРС 4 р. | H41: 12 | I41: 12 | L41: 12 | M41: 12 | P41: 9.5 | Q41: 11.5 | T41: 12 | U41: 12 | AJ41: =IF(ISNA(SUM(IF(RIGHTB(D41)="%",TEXT(INDEX(E$5:AI41,MATCH(LEFTB(C41,SEARCH("%",D41)),(C$5:C41),),),"0;0;12")*E41:AI41%,E41:AI41))),"",SUM(IF(RIGHTB(D41)="%",TEXT(INDEX(E$5:AI41,MATCH(LEFTB(C41,SEARCH("%",D41)),(C$5:C41),),),"0;0;12")*E41:AI41%,E41:AI41))) -> 93
B42: =IFERROR(VLOOKUP(C42,[1]Список!$B$2:$C$150,2,0),"") -> 509 | C42: Заяц Т.Л. | D42: Резчик ПРС 3 р. % | H42: 100 | AJ42: =IF(ISNA(SUM(IF(RIGHTB(D42)="%",TEXT(INDEX(E$5:AI42,MATCH(LEFTB(C42,SEARCH("%",D42)),(C$5:C42),),),"0;0;12")*E42:AI42%,E42:AI42))),"",SUM(IF(RIGHTB(D42)="%",TEXT(INDEX(E$5:AI42,MATCH(LEFTB(C42,SEARCH("%",D42)),(C$5:C42),),),"0;0;12")*E42:AI42%,E42:AI42))) -> 12
B43: =IFERROR(VLOOKUP(C43,[1]Список!$B$2:$C$150,2,0),"") ->  | AJ43: =IF(ISNA(SUM(IF(RIGHTB(D43)="%",TEXT(INDEX(E$5:AI43,MATCH(LEFTB(C43,SEARCH("%",D43)),(C$5:C43),),),"0;0;12")*E43:AI43%,E43:AI43))),"",SUM(IF(RIGHTB(D43)="%",TEXT(INDEX(E$5:AI43,MATCH(LEFTB(C43,SEARCH("%",D43)),(C$5:C43),),),"0;0;12")*E43:AI43%,E43:AI43))) -> 0
B44: =IFERROR(VLOOKUP(C44,[1]Список!$B$2:$C$150,2,0),"") ->  | AJ44: =IF(ISNA(SUM(IF(RIGHTB(D44)="%",TEXT(INDEX(E$5:AI44,MATCH(LEFTB(C44,SEARCH("%",D44)),(C$5:C44),),),"0;0;12")*E44:AI44%,E44:AI44))),"",SUM(IF(RIGHTB(D44)="%",TEXT(INDEX(E$5:AI44,MATCH(LEFTB(C44,SEARCH("%",D44)),(C$5:C44),),),"0;0;12")*E44:AI44%,E44:AI44))) -> 0
A45: 10 | B45: =IFERROR(VLOOKUP(C45,[1]Список!$B$2:$C$150,2,0),"") -> 1538 | C45: Ковалёв Д.А. | D45: Резчик ПРС 3 р. | I45: 12 | L45: 12 | M45: 12 | AJ45: =IF(ISNA(SUM(IF(RIGHTB(D45)="%",TEXT(INDEX(E$5:AI45,MATCH(LEFTB(C45,SEARCH("%",D45)),(C$5:C45),),),"0;0;12")*E45:AI45%,E45:AI45))),"",SUM(IF(RIGHTB(D45)="%",TEXT(INDEX(E$5:AI45,MATCH(LEFTB(C45,SEARCH("%",D45)),(C$5:C45),),),"0;0;12")*E45:AI45%,E45:AI45))) -> 36
B46: =IFERROR(VLOOKUP(C46,[1]Список!$B$2:$C$150,2,0),"") -> 1538 | C46: Ковалёв Д.А. | D46: Разм. брака 2 р. % | I46: 100 | AJ46: =IF(ISNA(SUM(IF(RIGHTB(D46)="%",TEXT(INDEX(E$5:AI46,MATCH(LEFTB(C46,SEARCH("%",D46)),(C$5:C46),),),"0;0;12")*E46:AI46%,E46:AI46))),"",SUM(IF(RIGHTB(D46)="%",TEXT(INDEX(E$5:AI46,MATCH(LEFTB(C46,SEARCH("%",D46)),(C$5:C46),),),"0;0;12")*E46:AI46%,E46:AI46))) -> 12
B47: =IFERROR(VLOOKUP(C47,[1]Список!$B$2:$C$150,2,0),"") ->  | AJ47: =IF(ISNA(SUM(IF(RIGHTB(D47)="%",TEXT(INDEX(E$5:AI47,MATCH(LEFTB(C47,SEARCH("%",D47)),(C$5:C47),),),"0;0;12")*E47:AI47%,E47:AI47))),"",SUM(IF(RIGHTB(D47)="%",TEXT(INDEX(E$5:AI47,MATCH(LEFTB(C47,SEARCH("%",D47)),(C$5:C47),),),"0;0;12")*E47:AI47%,E47:AI47))) -> 0
E49: Мастер смены: | I49: =[1]Начальная!C8 -> Хомич Н.Н. | O49: ___________ | S49: =TODAY() -> 2015-08-27

Sheet Лист1

Sheet Лист2

Sheet Лист3
